fUST/lending_fUST_20260330
["ID","MTS","AMOUNT","RATE_DAILY","PERIOD"]
[419039343,1774800124806,-761.8844776,0.00012897,2]
[419039344,1774800124855,-2321.16907976,0.00013027,2]
[419039345,1774800154120,-761.8844776,0.00013027,2]
[419039346,1774800413541,-200.0,7.655e-05,30]
[419039347,1774800414777,-200.0,7.655e-05,30]
[419039348,1774800415550,-200.0,7.655e-05,30]
[419039349,1774800416267,-200.0,7.655e-05,30]
[419039350,1774800418560,-200.0,7.655e-05,30]
[419039351,1774800426336,-200.0,7.655e-05,30]
[419039362,1774800626221,-151.0,7.655e-05,30]
[419039363,1774800627086,-99.0,7.655e-05,30]
[419039404,1774800632828,-619.2850245,9.801e-05,2]
[419039702,1774800639055,-800.0,9.801e-05,2]
[419040197,1774800646859,-3580.7149755,9.801e-05,2]
[419040199,1774800646870,-4010.34993797,9.9e-05,2]
[419040201,1774800646879,-162.92,0.0001,2]
[419040202,1774800646889,-1000.0,0.00013699,2]
[419040204,1774800646899,-300.0,0.00015,2]
[419040206,1774800646909,-353.91927236,0.00016,2]
[419040207,1774800646919,-455.0679627,0.0001695,2]
[419040209,1774800646929,-324.8606328,0.0001695,2]
[419040211,1774800646939,-324.8434484,0.0001695,2]
[419040212,1774800646949,-325.943338,0.0001695,2]
[419040214,1774800646958,-324.6253194,0.0001695,2]
[419040216,1774800646969,-456.9741702,0.00016959,2]
[419040217,1774800646979,-430.4344681,0.00016959,2]
[419040219,1774800646989,-3111.77,0.00017105,2]
[419040220,1774800646998,-150.648,0.00017542,2]
[419040222,1774800647008,-455.0679627,0.00017772,2]
[419040224,1774800647017,-196.2113004,0.00017772,2]
[419040226,1774800647027,-196.2113003,0.00017772,2]
[419040228,1774800647036,-196.2113003,0.00017772,2]
[419040230,1774800647046,-502.63363251,0.00017773,2]
[419040232,1774800647055,-324.8434484,0.00017776,2]
[419040234,1774800647065,-324.8434484,0.00017781,2]
[419040236,1774800647075,-455.0909562,0.00017781,2]
[419040238,1774800647084,-324.8606328,0.00017781,2]
[419040240,1774800647094,-5091.57775849,0.000178,2]
[419040242,1774800647106,-4961.8844776,0.000178,2]
[419040466,1774801838024,-396.177,0.00012514,2]
[419040976,1774801843269,-1616.94644264,0.00012514,2]
[419040978,1774801843280,-5000.0,0.0001264,2]
[419040980,1774801843289,-2800.07771106,0.00012768,2]
[419040983,1774801843303,-1619.57352785,0.00012768,2]
[419040985,1774801843313,-641.67647215,0.00013699,2]
[419041301,1774801919506,-139.5535278,0.00013292,2]
[419041302,1774801919531,-4360.4464722,0.00013292,2]
[419041303,1774802138784,-166.66082779,7.73e-05,2]
[419041304,1774802138911,-166.66082779,7.73e-05,2]
[419041305,1774802139041,-166.66082779,7.73e-05,2]
[419041345,1774803032048,-496.07605931,6.99e-05,2]
[419041346,1774803032058,-229.06682554,7.061e-05,2]
[419041362,1774803038293,-4770.93317446,7.061e-05,2]
[419041363,1774803038303,-1170.98208022,7.655e-05,2]
[419041364,1774803038313,-254.0,7.887e-05,2]
[419041365,1774803038323,-254.0,8.887e-05,2]
[419041366,1774803038332,-254.0,9.887e-05,2]
[419041367,1774803038342,-254.0,0.00010887,2]
[419041368,1774803038352,-254.0,0.00011887,2]
[419041369,1774803038361,-255.67447141,0.00012887,2]
[419041370,1774803038371,-300.0,0.00013698,2]
[419041371,1774803038381,-1000.0,0.00013699,2]
[419041372,1774803038391,-200.0,0.00013699,2]
[419041373,1774803038400,-151.0,0.00013699,2]
[419041374,1774803038410,-151.0,0.00013699,2]
[419041375,1774803038419,-151.0,0.00013699,2]
[419041376,1774803038428,-151.0,0.00013699,2]
[419041377,1774803038438,-151.0,0.00013699,2]
[419041378,1774803038447,-151.0,0.00013699,2]
[419041379,1774803038456,-151.0,0.00013699,2]
[419041380,1774803038466,-151.0,0.00013699,2]
[419041381,1774803038475,-292.0,0.00013699,2]
[419041382,1774803038484,-1651.192739,0.00014975,2]
[419041383,1774803038494,-384.04689768,0.0001535,2]
[419041384,1774803038503,-1000.0,0.00015872,2]
[419041385,1774803038512,-196.2113003,0.00016128,2]
[419041386,1774803038522,-196.2113003,0.00016128,2]
[419041387,1774803038531,-196.2113003,0.00016128,2]
[419041388,1774803038541,-196.1708088,0.00016132,2]
[419041389,1774803038551,-196.2113003,0.00016137,2]
[419041390,1774803038560,-158.397364,0.00016704,2]
[419041391,1774803038570,-228.656792,0.00016729,2]
[419041392,1774803038579,-196.2113003,0.0001695,2]
[419041393,1774803038589,-196.2113003,0.0001695,2]
[419041394,1774803038599,-161.39304,0.00016951,2]
[419041395,1774803038608,-196.2113003,0.00016954,2]
[419041396,1774803038618,-200.4407805,0.00016954,2]
[419041397,1774803038627,-196.2113003,0.00016959,2]
[419041398,1774803038637,-196.2113003,0.00016959,2]
[419041399,1774803038646,-196.2113003,0.00016959,2]
[419041400,1774803038655,-196.2113003,0.00016959,2]
[419041401,1774803038664,-196.2113003,0.00017781,2]
[419041402,1774803038674,-1000.0,0.000178,2]
[419041403,1774803038683,-161.39304,0.00017843,2]
[419041404,1774803038692,-184.0,0.0001786,2]
[419041405,1774803038702,-259.9176797,0.00018257,2]
[419041406,1774803038714,-340.0823203,0.00018257,2]
[419041407,1774803038724,-151.0,0.00018369,2]
[419041408,1774803038733,-159.0,0.000185,2]
[419041409,1774803038743,-159.0,0.000185,3]
[419041410,1774803038753,-160.0,0.000185,4]
[419041411,1774803038761,-2799.0,0.000185,2]
[419041412,1774803038771,-161.0,0.000185,3]
[419041413,1774803038780,-151.0,0.000185,2]
[419041414,1774803038790,-151.0,0.00018527,2]
[419041415,1774803038800,-151.0,0.000186,2]
[419041416,1774803038810,-1535.24289873,0.0001862,2]
[419041417,1774803038819,-162.0,0.0001868,2]
[419041418,1774803038829,-151.0,0.00018684,2]
[419041419,1774803038838,-455.0679627,0.00018686,2]
[419041420,1774803038848,-397.4797072,0.00018686,2]
[419041421,1774803038858,-1004.73733675,0.0001871,2]
[419041422,1774803038867,-161.39304,0.00018735,2]
[419041423,1774803038877,-151.0,0.000188,2]
[419041424,1774803038886,-2208.01122153,0.000188,2]
[419041425,1774803038898,-14367.51518706,0.000188,2]
[419041779,1774803043567,-3168.67124719,0.000188,2]
[419042041,1774803046335,-1572.24107978,0.000188,2]
[419042043,1774803046345,-813.64276904,0.0001881,2]
[419042045,1774803046355,-151.0,0.00018842,2]
[419042047,1774803046365,-213.275105,0.00018873,2]
[419042049,1774803046375,-3416.22485424,0.00018873,2]
[419042051,1774803046384,-500.0,0.00018973,2]
[419042053,1774803046394,-500.0,0.00018973,2]
[419042055,1774803046403,-500.0,0.00018973,2]
[419042057,1774803046413,-500.0,0.00018973,2]
[419042059,1774803046422,-500.0,0.00018973,2]
[419042061,1774803046432,-454.64845308,0.00018973,2]
[419042063,1774803046442,-500.0,0.00018973,2]
[419042064,1774803046452,-500.0,0.00018973,2]
[419042066,1774803046462,-500.0,0.00018973,2]
[419042068,1774803046472,-500.0,0.00018973,2]
[419042071,1774803046482,-500.0,0.00018973,2]
[419042073,1774803046491,-309.55815481,0.00018973,2]
[419042075,1774803046502,-226.4296642,0.00018999,2]
[419042077,1774803046512,-63.57006424,0.00018999,2]
[419042079,1774803046524,-436.42993576,0.00018999,2]
[419042081,1774803046534,-500.0,0.00018999,2]
[419042083,1774803046544,-500.0,0.00018999,2]
[419042085,1774803046553,-500.0,0.00018999,2]
[419042087,1774803046563,-399.08984982,0.00018999,2]
[419042089,1774803046573,-500.0,0.00018999,2]
[419042091,1774803046582,-280.23271595,0.00018999,2]
[419042093,1774803046592,-32881.55277381,0.00019,2]
[419042095,1774803046604,-24030.53449191,0.00019,2]
[419043414,1774803720437,-1426.5488717,0.00012897,2]
[419043617,1774804238591,-369.12,0.00012021,2]
[419044095,1774804243578,-5000.0,0.00011901,2]
[419044097,1774804243589,-4630.88,0.00012021,2]
[419044099,1774804243599,-5000.0,0.00012142,2]
[419044101,1774804243609,-300.0,0.00012388,2]
[419044103,1774804243618,-1000.0,0.00013699,2]
[419044106,1774804243628,-150.648,0.00015183,2]
[419044108,1774804243638,-170.980546,0.00015183,2]
[419044109,1774804243647,-158.397364,0.0001596,2]
[419044112,1774804243657,-439.0,0.00017926,2]
[419044113,1774804243667,-184.0,0.00017926,2]
[419044116,1774804243677,-500.0,0.00018589,2]
[419044118,1774804243687,-1654.68969937,0.00018589,2]
[419044125,1774804243749,-180.71763373,0.00018589,2]
[419044181,1774804246437,-563.0046072,0.00018589,2]
[419044182,1774804246447,-424.51719776,0.00018595,2]
[419044183,1774804246545,-30.55076494,0.00018595,2]
[419044184,1774804246694,-455.0679627,0.00018601,2]
[419044185,1774804246704,-324.8434484,0.00018601,2]
[419044187,1774804246714,-324.8434484,0.00018601,2]
[419044189,1774804246724,-324.7756632,0.00018601,2]
[419044190,1774804246734,-1113.74545167,0.0001862,2]
[419044192,1774804246744,-151.0,0.0001869,2]
[419044193,1774804246753,-879.14516963,0.00018712,2]
[419044194,1774804246763,-158.50076494,0.00018799,2]
[419044195,1774804246773,-197.80363511,0.00018799,2]
[419044196,1774804246782,-118286.52688504,0.000188,2]
[419044265,1774805433155,-551.668,0.00011664,2]
[419044268,1774805433167,-3579.90077656,0.00011664,2]
[419044270,1774805433179,-868.43122344,0.00011664,2]
[419044272,1774805433189,-882.73253965,0.00011782,2]
[419044364,1774805438619,-4117.26746035,0.00011782,2]
[419044365,1774805438628,-1784.61317248,0.00011901,2]
[419044366,1774805438638,-1000.0,0.00013699,2]
[419044367,1774805438648,-3904.7738959,0.00016836,2]
[419044368,1774805438658,-8301.7076597,0.00016879,2]
[419044369,1774805438668,-2124.55897955,0.00017177,2]
[419044370,1774805438677,-500.0,0.00017479,2]
[419044371,1774805438687,-2398.4119403,0.00017479,2]
[419044372,1774805438696,-500.0,0.00017601,2]
[419044373,1774805438706,-228.6567933,0.00017637,2]
[419044374,1774805438716,-162.0,0.0001772,2]
[419044375,1774805438726,-500.0,0.00018027,2]
[419044376,1774805438736,-2487.15318209,0.00018027,2]
[419044377,1774805438746,-1297.1721193,0.00018288,2]
[419044378,1774805438757,-439.0,0.00018517,2]
[419044379,1774805438879,-184.0,0.00018517,2]
[419044380,1774805438942,-501.08564007,0.00018575,2]
[419044381,1774805438953,-2579.17784983,0.00018575,2]
[419044382,1774805438963,-769.2520234,0.00018589,2]
[419044383,1774805438973,-363.4907181,0.00018595,2]
[419044384,1774805438982,-274.97317303,0.000186,18]
[419044385,1774805438992,-196.6674639,0.00018601,2]
[419044386,1774805439002,-196.2113003,0.00018601,2]
[419044387,1774805439012,-802.66375834,0.0001862,2]
[419044388,1774805439021,-150.6483913,0.0001862,2]
[419044389,1774805439031,-173268.98883792,0.00018778,2]
[419044646,1774805446530,-297.68565312,0.0001859,2]
[419044647,1774805446540,-6326.31434688,0.00018778,2]
[419044648,1774805446804,-795.76,0.00018778,2]
[419044693,1774806630554,224.15204,2.018e-05,2]
[419044765,1774806638750,-5000.0,8.821e-05,2]
[419044767,1774806638760,-5000.0,8.91e-05,2]
[419044769,1774806638769,-487.4,9e-05,2]
[419044771,1774806638779,-1000.0,0.00013699,2]
[419044773,1774806638789,-500.0,0.00017937,2]
[419044775,1774806638798,-1000.0,0.00017937,2]
[419044777,1774806638807,-655.44275336,0.0001862,2]
[419044779,1774806638817,-25825.12903038,0.000187,2]
[419044781,1774806638827,-2398.4119403,0.00018789,2]
[419044784,1774806638837,-161.39304,0.00018878,2]
[419044786,1774806638847,-336.72359809,0.000189,19]
[419044788,1774806638855,-634.74128075,0.000189,19]
[419044790,1774806638864,-695.56949121,0.000189,19]
[419044792,1774806638874,-3074.60236878,0.000189,2]
[419044794,1774806638884,-151.0,0.00018973,2]
[419044796,1774806638893,-151.0,0.00018973,2]
[419044798,1774806638902,-641286.69070836,0.00019,2]
[419044877,1774806641228,-627.56955643,0.00019,2]
[419044884,1774806641281,-1696.26169907,0.00019,2]
[419044886,1774806641293,-9368.75390134,0.00019,2]
[419045140,1774806644125,-1609.90859807,0.00019,2]
[419045142,1774806644138,-911.91340463,0.00019,2]
[419045144,1774806644149,-1030.17394254,0.00019,2]
[419045376,1774806646810,-3402.79637515,0.00019,2]
[419045377,1774806646822,-3438.22961107,0.00019,2]
[419045378,1774806646833,-51276.46429813,0.00019,2]
[419045390,1774806647021,-40324.1037569,0.00019,2]
[419045392,1774806647033,-424440.79255878,0.00019,2]
[419045394,1774806647045,-11614.2025284,0.00019,2]
[419045401,1774806647129,-40502.33502548,0.00019,2]
[419045453,1774807323607,-1171.667,0.00012897,2]
[419045541,1774807837987,-5000.0,0.00011761,2]
[419045543,1774807838000,-5000.0,0.0001188,2]
[419045545,1774807838012,-39313.12248185,0.00012,2]
[419045548,1774807838030,-1359.0,0.00012,2]
[419045555,1774807838097,-3686.12324199,0.00012,2]
[419045558,1774807838112,-224468.104602,0.00012,2]
[419045840,1774807843506,-2280.80767881,0.00012,2]
[419046128,1774807846035,-1494.94726776,0.0001188,2]
[419046130,1774807846048,-8038.88954669,0.00012,2]
[419046158,1774807846299,-29205.1375522,0.00012,2]
[419046160,1774807846312,-25953.65733148,0.00012,2]
[419046747,1774809038061,-5000.0,9.75e-05,2]
[419046749,1774809038072,-5000.0,9.848e-05,2]
[419046751,1774809038081,-27992.9635645,0.00011,2]
[419047010,1774809040731,-747.202766,0.00011,2]
[419047469,1774809046265,-3828.333,9.653e-05,2]
[419047471,1774809046275,-1171.667,0.00011,2]
[419047805,1774809100265,-1000.0,0.00010781,2]
[419047840,1774809338375,-180.71763373,0.00010566,2]
[419047896,1774810233428,-567.76,9.556e-05,2]
[419047970,1774810238645,-3251.52236627,9.556e-05,2]
[419047972,1774810238654,-244.37368403,9.653e-05,2]
[419047974,1774810238666,-3583.95931597,9.653e-05,2]
[419047976,1774810238675,-616.9908,9.75e-05,2]
[419047978,1774810238685,-1093.02459951,9.947e-05,2]
[419047991,1774810238801,-909.42226495,9.947e-05,2]
[419047993,1774810238813,-478.85715799,9.947e-05,2]
[419048198,1774810240918,-25.1417759,9.947e-05,2]
[419048411,1774810243418,-634.66394177,9.947e-05,2]
[419048428,1774810243552,-841.34677447,9.947e-05,2]
[419048431,1774810243598,-24698.48440651,9.947e-05,2]
[419048435,1774810243629,-1625.79918937,9.947e-05,2]
[419048442,1774810243684,-31392.34528953,9.947e-05,2]
[419048444,1774810243694,-68305.45508712,0.0001,2]
[419048694,1774810246321,-6555.0,0.0001,2]
[419048711,1774810246481,-6965.63015316,0.0001,2]
[419048718,1774810246536,-15019.16536541,0.0001,2]
[419049489,1774811432316,-961.04889694,7.792e-05,2]
[419049492,1774811432504,-4038.95110306,7.792e-05,2]
[419049493,1774811432515,-147.02407736,7.871e-05,2]
[419049526,1774811438499,-2923.86707462,7.871e-05,2]
[419049528,1774811438511,-1929.10884802,7.871e-05,2]
[419049530,1774811438521,-173.38364683,7.951e-05,2]
[419049532,1774811438530,-391.71956308,9.497e-05,2]
[419049534,1774811438540,-21488.01771083,0.0001,2]
[419049538,1774811438563,-536.9198889,0.0001,2]
[419050387,1774812632434,-2334.10422389,6.33e-05,2]
[419050394,1774812632494,-2665.89577611,6.33e-05,2]
[419050396,1774812632504,-5000.0,6.394e-05,2]
[419050398,1774812632514,-15904.38179992,7e-05,2]
[419050501,1774812638571,-527.53132244,6.93e-05,2]
[419050503,1774812638581,-15158.1425683,7e-05,2]
[419050505,1774812638592,-173.38364682,7.977e-05,2]
[419050508,1774812638603,-1876.92602906,0.0001,2]
[419050510,1774812638613,-151.0,0.0001,2]
[419050511,1774812638622,-151.0,0.0001,2]
[419050513,1774812638632,-151.0,0.0001,2]
[419050514,1774812638642,-151.0,0.0001,2]
[419050516,1774812638652,-151.0,0.0001,2]
[419050518,1774812638662,-151.0,0.0001,2]
[419050521,1774812638672,-151.0,0.0001,2]
[419050523,1774812638682,-151.0,0.0001,2]
[419050525,1774812638692,-151.0,0.0001,2]
[419050527,1774812638702,-229.80459918,0.0001,2]
[419050529,1774812638711,-272.54,0.000109,2]
[419050530,1774812638721,-222.99,0.000115,2]
[419050532,1774812638731,-15380.3736,0.00012604,2]
[419050534,1774812638741,-4722.68758827,0.000129,2]
[419050536,1774812638751,-4722.68758823,0.000129,2]
[419050538,1774812638760,-4722.68758823,0.00013233,2]
[419050540,1774812638771,-199.95732645,0.00013566,2]
[419050542,1774812638780,-454.4264541,0.00013698,2]
[419050544,1774812638790,-2354.72,0.00013698,2]
[419050546,1774812638799,-156.0,0.00013699,2]
[419050560,1774812638904,-1000.0,0.00013699,2]
[419050563,1774812638946,-1000.0,0.00013699,2]
[419050565,1774812638956,-1000.0,0.00013699,2]
[419050567,1774812638966,-455.0909562,0.00014624,2]
[419050569,1774812638976,-264.492952,0.00015068,2]
[419050571,1774812638987,-324.8434484,0.00015501,2]
[419050574,1774812638997,-375.9393159,0.00015572,2]
[419050576,1774812639007,-4722.68758823,0.0001566,2]
[419050578,1774812639016,-500.0,0.00015783,2]
[419050580,1774812639026,-500.0,0.00015783,2]
[419050582,1774812639035,-500.0,0.00015783,2]
[419050584,1774812639045,-630.69789884,0.00015783,2]
[419050586,1774812639055,-500.0,0.00015783,2]
[419050588,1774812639065,-500.0,0.00015783,2]
[419050590,1774812639075,-494.68584382,0.00015783,2]
[419050592,1774812639084,-458.1165004,0.00016393,2]
[419050594,1774812639093,-454.7405096,0.00016393,2]
[419050595,1774812639103,-196.1748999,0.00016393,2]
[419050597,1774812639112,-548.099,0.0001643,2]
[419050600,1774812639122,-184.0,0.0001643,2]
[419050601,1774812639132,-439.0,0.0001643,2]
[419050603,1774812639142,-1000.0,0.00016438,2]
[419050605,1774812639151,-500.0,0.00016477,5]
[419050607,1774812639161,-788.0,0.000166,2]
[419050609,1774812639170,-2859.976512,0.00016813,2]
[419050611,1774812639181,-2859.976512,0.00016813,2]
[419050613,1774812639190,-2859.976512,0.00016813,2]
[419050615,1774812639199,-2859.976512,0.00016813,2]
[419050617,1774812639208,-161.39304,0.00016814,2]
[419050619,1774812639218,-500.0,0.00017362,2]
[419050621,1774812639227,-2859.976512,0.00017599,2]
[419050623,1774812639237,-2859.976512,0.00017599,2]
[419050625,1774812639246,-2859.976512,0.00017599,2]
[419050626,1774812639255,-2859.976512,0.00017599,2]
[419050629,1774812639265,-387.0188424,0.000176,17]
[419050630,1774812639275,-839.01518081,0.000176,17]
[419050632,1774812639285,-151.0,0.000176,2]
[419050634,1774812639295,-151.0,0.000176,2]
[419050636,1774812639304,-151.0,0.000176,2]
[419050638,1774812639314,-151.0,0.000176,2]
[419050640,1774812639323,-151.0,0.000176,2]
[419050642,1774812639334,-151.0,0.000176,2]
[419050644,1774812639344,-151.0,0.000176,2]
[419050646,1774812639353,-151.0,0.000176,2]
[419050647,1774812639363,-151.0,0.000176,2]
[419050648,1774812639372,-151.0,0.000176,2]
[419050649,1774812639383,-2859.976512,0.000176,2]
[419050650,1774812639392,-2859.976512,0.000176,2]
[419050651,1774812639403,-2859.976512,0.000176,2]
[419050652,1774812639412,-2859.976512,0.000176,2]
[419050653,1774812639422,-2859.976512,0.000176,2]
[419050654,1774812639431,-2859.976512,0.000176,2]
[419050655,1774812639440,-2859.976512,0.000176,2]
[419050656,1774812639450,-2859.976512,0.000176,2]
[419050657,1774812639459,-151.0,0.000176,2]
[419050658,1774812639468,-151.0,0.000176,2]
[419050659,1774812639478,-151.0,0.000176,2]
[419050660,1774812639488,-151.0,0.000176,2]
[419050661,1774812639498,-151.0,0.000176,2]
[419050662,1774812639507,-151.0,0.000176,2]
[419050663,1774812639517,-151.0,0.000176,2]
[419050664,1774812639526,-151.0,0.000176,2]
[419050665,1774812639547,-151.0,0.000176,2]
[419050666,1774812639559,-151.0,0.000176,2]
[419050667,1774812639569,-151.0,0.000177,2]
[419050668,1774812639579,-151.0,0.000177,2]
[419050669,1774812639589,-151.0,0.000177,2]
[419050670,1774812639600,-151.0,0.000177,2]
[419050671,1774812639611,-151.0,0.000177,2]
[419050672,1774812639621,-151.0,0.000177,2]
[419050673,1774812639631,-151.0,0.000177,2]
[419050674,1774812639642,-151.0,0.000177,2]
[419050675,1774812639653,-151.0,0.000177,2]
[419050676,1774812639663,-151.0,0.000177,2]
[419050677,1774812639674,-5000.0,0.00017748,2]
[419050678,1774812639684,-544.8050609,0.0001775,2]
[419050679,1774812639694,-500.0,0.0001775,2]
[419050680,1774812639705,-500.0,0.0001775,2]
[419050681,1774812639715,-500.0,0.0001775,2]
[419050682,1774812639725,-500.0,0.0001775,2]
[419050683,1774812639735,-500.0,0.0001775,2]
[419050684,1774812639745,-500.0,0.0001775,2]
[419050685,1774812639755,-500.0,0.0001775,2]
[419050686,1774812639766,-500.0,0.0001775,2]
[419050687,1774812639776,-500.0,0.0001775,2]
[419050688,1774812639786,-500.0,0.0001775,2]
[419050689,1774812639797,-500.0,0.0001775,2]
[419050690,1774812639808,-500.0,0.0001775,2]
[419050691,1774812639818,-500.0,0.0001775,2]
[419050692,1774812639827,-500.0,0.0001775,2]
[419050693,1774812639837,-500.0,0.0001775,2]
[419050694,1774812639847,-477.88233839,0.0001775,2]
[419050695,1774812639857,-220.04733852,0.000178,15]
[419050696,1774812639868,-556.68024466,0.000178,15]
[419050697,1774812639881,-500.0,0.0001785,2]
[419050698,1774812639891,-468.9,0.00018,2]
[419050699,1774812639900,-451.53,0.00018,2]
[419050700,1774812639910,-5003.14732791,0.00018,4]
[419050701,1774812639920,-1002.174386,0.00018,2]
[419050702,1774812639930,-455.0679627,0.00018004,2]
[419050703,1774812639940,-307.0,0.00018005,2]
[419050705,1774812639950,-196.2208232,0.00018027,2]
[419050707,1774812639960,-163.0,0.0001804,2]
[419050708,1774812639969,-2859.976512,0.00018049,2]
[419050711,1774812639980,-2859.976512,0.00018049,2]
[419050713,1774812639989,-2859.976512,0.00018049,2]
[419050715,1774812639999,-2859.976517,0.00018049,2]
[419050717,1774812640009,-2398.4119403,0.00018049,2]
[419050719,1774812640019,-4722.68758823,0.00018087,2]
[419050720,1774812640028,-398.0,0.0001817,2]
[419050723,1774812640038,-972.94440852,0.00018298,2]
[419050725,1774812640049,-1000.0,0.00018298,2]
[419050727,1774812640058,-1000.0,0.00018298,2]
[419050729,1774812640068,-1000.0,0.00018298,2]
[419050731,1774812640077,-1000.0,0.00018298,2]
[419050733,1774812640086,-1000.0,0.00018298,2]
[419050735,1774812640096,-1000.0,0.00018298,2]
[419050737,1774812640106,-1000.0,0.00018298,2]
[419050739,1774812640115,-1000.0,0.00018298,2]
[419050741,1774812640125,-1000.0,0.00018298,2]
[419050743,1774812640137,-1000.0,0.00018298,2]
[419050745,1774812640147,-1000.0,0.00018298,2]
[419050747,1774812640157,-1000.0,0.00018298,2]
[419050749,1774812640167,-1000.0,0.00018298,2]
[419050752,1774812640177,-1000.0,0.00018298,2]
[419050754,1774812640187,-464.66518152,0.00018369,2]
[419050756,1774812640197,-1000.0,0.00018398,2]
[419050758,1774812640207,-264.492952,0.00018493,2]
[419050760,1774812640217,-1000.0,0.000185,2]
[419050762,1774812640227,-359.56326443,0.00018526,2]
[419050764,1774812640237,-500.0,0.00018573,2]
[419050766,1774812640246,-500.0,0.00018573,2]
[419050768,1774812640256,-500.0,0.00018573,2]
[419050770,1774812640266,-500.0,0.00018573,2]
[419050772,1774812640276,-500.0,0.00018573,2]
[419050774,1774812640286,-500.0,0.00018573,2]
[419050776,1774812640296,-500.0,0.00018573,2]
[419050778,1774812640307,-500.0,0.00018573,2]
[419050780,1774812640316,-2487.15318209,0.00018597,2]
[419050782,1774812640326,-500.0,0.00018598,2]
[419050784,1774812640336,-500.0,0.00018598,2]
[419050786,1774812640346,-152.54841103,0.00018598,2]
[419050788,1774812640356,-80480.62032727,0.000186,2]
[419050791,1774812640366,-160.0,0.00018671,2]
[419050793,1774812640376,-160.0,0.00018671,2]
[419050795,1774812640387,-2000.0,0.00018712,7]
[419050797,1774812640398,-2767.14213192,0.00018725,2]
[419050799,1774812640407,-151.0,0.000188,2]
[419050801,1774812640417,-100000.0,0.000188,2]
[419050803,1774812640427,-454.7263385,0.00018825,2]
[419050805,1774812640437,-196.2113003,0.00018825,2]
[419050807,1774812640446,-1500.0,0.00018846,2]
[419050809,1774812640456,-1500.0,0.00018846,2]
[419050811,1774812640466,-1500.0,0.00018846,2]
[419050813,1774812640476,-357.64855278,0.00018846,2]
[419050815,1774812640486,-541.028858,0.00018846,2]
[419050817,1774812640496,-1500.0,0.00018846,2]
[419050819,1774812640505,-1500.0,0.00018846,2]
[419050821,1774812640515,-1500.0,0.00018846,2]
[419050823,1774812640524,-1500.0,0.00018846,2]
[419050825,1774812640534,-1500.0,0.00018846,2]
[419050827,1774812640544,-1500.0,0.00018846,2]
[419050829,1774812640553,-859.22763115,0.00018846,2]
[419050831,1774812640563,-1466.52048942,0.00018846,2]
[419050833,1774812640572,-1582.36409427,0.00018846,2]
[419050835,1774812640582,-321.77098519,0.00018859,2]
[419050837,1774812640591,-500.0,0.00018873,2]
[419050839,1774812640602,-500.0,0.00018873,2]
[419050841,1774812640611,-500.0,0.00018873,2]
[419050843,1774812640621,-500.0,0.00018873,2]
[419050845,1774812640631,-500.0,0.00018873,2]
[419050847,1774812640641,-500.0,0.00018873,2]
[419050848,1774812640652,-500.0,0.00018873,2]
[419050850,1774812640661,-151.0,0.000189,2]
[419050852,1774812640671,-151.0,0.000189,2]
[419050854,1774812640680,-1500.0,0.00018946,2]
[419050856,1774812640690,-500.0,0.00018973,2]
[419050858,1774812640701,-500.0,0.00018973,2]
[419050860,1774812640710,-500.0,0.00018973,2]
[419050862,1774812640720,-500.0,0.00018973,2]
[419050864,1774812640729,-500.0,0.00018973,2]
[419050866,1774812640739,-500621.47763974,0.00019,2]
[419050868,1774812640754,-50551.42,0.00019,2]
[419050871,1774812640765,-3972.51448082,0.00019,2]
[419050874,1774812640792,-971445.22820099,0.00019,2]
[419050876,1774812640802,-853.86,0.00019,2]
[419050878,1774812640812,-398.50214316,0.00019,2]
[419050881,1774812640822,-94659.19,0.00019,2]